fUSD/lending_fUSD_20240116
["ID","MTS","AMOUNT","RATE_DAILY","PERIOD"]
[311784154,1705387940257,1196.32,0.00022099,2]
[311784155,1705387941334,204.58380832,0.00022099,2]
[311784156,1705387942750,4397.72,0.00022099,2]
[311784157,1705387944312,500.0,0.00022099,2]
[311784158,1705387944399,637.2,0.00022099,2]
[311784159,1705387945485,500.0,0.00022099,2]
[311784160,1705387946349,500.0,0.00022099,2]
[311784161,1705387947230,2488.8,0.00022099,2]
[311784162,1705387948520,509.43,0.00022099,2]
[311784163,1705387949694,405.01260262,0.00022099,2]
[311784164,1705387950194,841.12,0.00022099,2]
[311784165,1705387951068,500.0,0.00022099,2]
[311784166,1705387951771,500.0,0.00022099,2]
[311784167,1705387952168,979.87,0.00022099,2]
[311784168,1705387952581,522.64,0.00022099,2]
[311784169,1705387952693,500.0,0.00022099,2]
[311784170,1705387953523,991.78,0.00022099,2]
[311784171,1705387953735,3610.33,0.00022099,2]
[311784172,1705387954755,500.0,0.00022099,2]
[311784173,1705387958906,500.0,0.00022099,2]
[311784174,1705387959299,500.0,0.00022099,2]
[311784175,1705387959727,500.0,0.00022099,2]
[311784176,1705387959858,500.0,0.00022099,2]
[311784177,1705387962423,176.23,0.00022,2]
[311784178,1705387965501,724.1,0.00022099,2]
[311784179,1705387966409,500.0,0.00022099,2]
[311784180,1705387966607,916.66,0.00022099,2]
[311784181,1705387968277,500.0,0.00022099,2]
[311784182,1705387968999,500.0,0.00022099,2]
[311784183,1705387969030,500.0,0.00022099,2]
[311784184,1705387970999,500.0,0.00022099,2]
[311784185,1705387973099,665.12,0.00022099,2]
[311784186,1705387974135,500.0,0.00022099,2]
[311784187,1705387974255,554.53,0.00022099,2]
[311784188,1705387974491,500.0,0.00022099,2]
[311784189,1705387975891,500.0,0.00022099,2]
[311784190,1705387976247,500.0,0.00022099,2]
[311784191,1705387976981,500.0,0.00022099,2]
[311784192,1705387978352,1873.52,0.00022099,2]
[311784193,1705387978898,507.47963157,0.00022099,2]
[311784194,1705387978982,1427.9,0.00022099,2]
[311784195,1705387981053,500.0,0.00022099,2]
[311784196,1705387982562,500.0,0.00022099,2]
[311784197,1705387983644,500.0,0.00022099,2]
[311784198,1705387984989,500.0,0.00022099,2]
[311784199,1705387985208,14856.23850883,0.0002189,2]
[311784200,1705387985441,157.5724284,0.00022,2]
[311784201,1705387986613,500.0,0.00022099,2]
[311784202,1705387986640,500.0,0.00022099,2]
[311784203,1705387988047,500.0,0.00022099,2]
[311784204,1705387988697,846.45314719,0.00022,2]
[311784205,1705387990708,500.0,0.00022099,2]
[311784206,1705387991451,839.97,0.00022099,2]
[311784207,1705387991535,500.0,0.00022099,2]
[311784208,1705387991820,500.0,0.00022099,2]
[311784209,1705387992221,856.6984896,0.00022,2]
[311784210,1705387992947,877.24,0.00022099,2]
[311784211,1705387993158,220.23175516,0.00022,2]
[311784212,1705387993519,500.0,0.00022099,2]
[311784213,1705387994773,511.5,0.00021999,2]
[311784214,1705387995599,8295.01,0.00022099,2]
[311784215,1705387997561,500.0,0.00022099,2]
[311784216,1705387999502,1204.72,0.00022099,2]
[311784217,1705388001000,875.72,0.00022099,2]
[311784218,1705388001134,809.0,0.00022099,2]
[311784219,1705388002565,500.0,0.00022099,2]
[311784220,1705388004773,349.54967429,0.00022099,2]
[311784221,1705388005109,10000.0,0.00021918,2]
[311784222,1705388006580,500.0,0.00022099,2]
[311784223,1705388010625,794.21,0.00022099,2]
[311784224,1705388010695,1456.1,0.00022099,2]
[311784225,1705388010890,500.0,0.00022099,2]
[311784226,1705388011036,950.4,0.00022099,2]
[311784227,1705388012720,267.05577298,0.00022,2]
[311784228,1705388013163,220.23175516,0.00022,2]
[311784229,1705388013632,676.65,0.00022099,2]
[311784230,1705388013911,206.0,0.00021287,2]
[311784231,1705388014248,673.09929911,0.00022,2]
[311784232,1705388015120,478.87,0.00021552,2]
[311784233,1705388015428,500.0,0.00022099,2]
[311784234,1705388015572,2056.2393,0.00022044,2]
[311784235,1705388016966,758.0,0.00022099,2]
[311784236,1705388017477,500.0,0.00022099,2]
[311784237,1705388017792,503.36948214,0.00022099,2]
[311784238,1705388019435,500.0,0.00022099,2]
[311784239,1705388021470,556.1,0.00022099,2]
[311784240,1705388021810,1183.77,0.00022099,2]
[311784241,1705388022062,830.17,0.00022099,2]
[311784242,1705388023046,314.16402952,0.00021918,2]
[311784243,1705388023163,500.0,0.00022099,2]
[311784244,1705388024415,500.0,0.00022099,2]
[311784245,1705388024478,500.0,0.00022099,2]
[311784246,1705388025707,843.8,0.00022099,2]
[311784247,1705388027434,500.0,0.00022099,2]
[311784248,1705388028047,8353.654265,0.00022032,2]
[311784249,1705388028296,1577.84,0.00022099,2]
[311784250,1705388031105,744.33,0.00022099,2]
[311784251,1705388031674,2319.17,0.00022099,2]
[311784252,1705388032264,500.0,0.00022099,2]
[311784253,1705388032862,500.0,0.00022099,2]
[311784254,1705388033052,538.42,0.00022099,2]
[311784255,1705388034606,155.89419348,0.0002,2]
[311784256,1705388035246,1298.79353446,0.00020068,2]
[311784257,1705388036720,1766.69,0.00022099,2]
[311784258,1705388038848,723.65,0.00022099,2]
[311784259,1705388039604,353.82242834,0.00022099,2]
[311784260,1705388039751,500.0,0.00021918,2]
[311784261,1705388039883,641.56,0.00022099,2]
[311784262,1705388041803,500.0,0.00022099,2]
[311784263,1705388042219,500.0,0.00022099,2]
[311784264,1705388042550,250.0,0.00022044,2]
[311784265,1705388042696,500.0,0.00022099,2]
[311784266,1705388042901,500.0,0.00022099,2]
[311784267,1705388044204,2618.6,0.00022099,2]
[311784268,1705388047576,3177.59,0.00022099,2]
[311784269,1705388047916,500.0,0.00022099,2]
[311784270,1705388050933,999.999998,0.0002,2]
[311784271,1705388051645,1095.43,0.00022099,2]
[311784272,1705388051766,300.0,0.00022043,2]
[311784273,1705388052086,1050.79,0.00022099,2]
[311784274,1705388054525,500.0,0.00022099,2]
[311784275,1705388058223,886.63,0.00022099,2]
[311784276,1705388059200,500.0,0.00022099,2]
[311784277,1705388059698,1850.02,0.00022099,2]
[311784278,1705388059797,3013.93,0.00022099,2]
[311784279,1705388061078,500.0,0.00022099,2]
[311784280,1705388062805,115.86799033,0.00021495,2]
[311784281,1705388062826,648.23200967,0.00021495,2]
[311784282,1705388063276,351.76799033,0.00022099,2]
[311784283,1705388063298,386.63200967,0.00022099,2]
[311784284,1705388064083,500.0,0.00022099,2]
[311784285,1705388064404,113.36799033,0.00022099,2]
[311784286,1705388064426,416.02200967,0.00022099,2]
[311784287,1705388066840,500.0,0.00022099,2]
[311784288,1705388066871,83.97799033,0.00021495,2]
[311784289,1705388066891,116.02200967,0.00021495,2]
[311784290,1705388067324,734.57,0.00022099,2]
[311784291,1705388069187,149.40799033,0.00022099,2]
[311784292,1705388069207,1000.0,0.00022099,2]
[311784293,1705388069227,855.03200967,0.00022099,2]
[311784294,1705388069561,144.96799033,0.00022099,2]
[311784295,1705388069584,355.03200967,0.00022099,2]
[311784296,1705388072977,644.96799033,0.00022099,2]
[311784297,1705388073015,150.0,0.00022099,2]
[311784298,1705388073039,4402.90200967,0.00022099,2]
[311784299,1705388073822,1225.9,0.00022099,2]
[311784300,1705388074193,500.0,0.00022099,2]
[311784301,1705388075275,500.0,0.00022099,2]
[311784302,1705388076248,500.0,0.00022099,2]
[311784303,1705388077743,830.38,0.00022099,2]
[311784304,1705388078705,526.51,0.00022099,2]
[311784305,1705388079126,2587.54,0.00022099,2]
[311784306,1705388082490,500.0,0.00022099,2]
[311784307,1705388083372,5557.27,0.00022099,2]
[311784308,1705388084074,500.0,0.00022099,2]
[311784309,1705388086097,551.93,0.00022099,2]
[311784310,1705388087595,500.0,0.00022099,2]
[311784311,1705388089241,500.0,0.00022099,2]
[311784312,1705388092434,500.0,0.00022099,2]
[311784313,1705388092599,1487.61,0.00022099,2]
[311784314,1705388096302,261.07,0.00021476,2]
[311784315,1705388097250,1079.78,0.00022099,2]
[311784316,1705388098380,500.0,0.00022099,2]
[311784317,1705388099081,868.12,0.00022099,2]
[311784318,1705388099726,5621.89,0.00022099,2]
[311784319,1705388099976,357.62149639,0.00022099,2]
[311784320,1705388101539,500.0,0.00022099,2]
[311784321,1705388102982,500.0,0.00022099,2]
[311784322,1705388103740,500.0,0.00022099,2]
[311784323,1705388104121,500.0,0.00022099,2]
[311784324,1705388104223,2000.0,0.00022099,2]
[311784325,1705388106854,556.8,0.00021476,2]
[311784326,1705388106947,200.0,0.00022099,2]
[311784327,1705388108213,500.0,0.00022099,2]
[311784328,1705388109288,500.0,0.00022099,2]
[311784329,1705388109432,724.94,0.00022099,2]
[311784330,1705388109867,1548.87,0.00022099,2]
[311784331,1705388111901,755.35,0.00022099,2]
[311784332,1705388112109,748.3,0.00022099,2]
[311784333,1705388113365,8960.53,0.00022099,2]
[311784334,1705388116525,500.0,0.00022099,2]
[311784335,1705388119776,250.0,0.00021476,2]
[311784336,1705388122066,1880.64,0.00022099,2]
[311784337,1705388123255,500.0,0.00022099,2]
[311784338,1705388124257,500.0,0.00022099,2]
[311784339,1705388124311,500.0,0.00022099,2]
[311784340,1705388124462,2587.4,0.00022099,2]
[311784341,1705388124575,183.2,0.00021457,2]
[311784342,1705388125376,500.0,0.00022099,2]
[311784343,1705388125766,500.0,0.00022099,2]
[311784344,1705388128318,500.0,0.00022099,2]
[311784345,1705388131533,2566.91,0.00022099,2]
[311784346,1705388134493,1714.62,0.00022099,2]
[311784347,1705388134768,500.0,0.00022099,2]
[311784348,1705388136675,500.0,0.00022099,2]
[311784349,1705388136748,797.87,0.00022099,2]
[311784350,1705388142674,15059.96,0.00022099,2]
[311784351,1705388144035,500.0,0.00022099,2]
[311784352,1705388144307,1171.57,0.00022099,2]
[311784353,1705388146343,705.13,0.00022099,2]
[311784354,1705388149438,500.0,0.00022099,2]
[311784355,1705388149790,500.0,0.00022099,2]
[311784356,1705388151596,500.0,0.00022099,2]
[311784357,1705388153464,1054.6,0.00022099,2]
[311784358,1705388155583,500.0,0.00022099,2]
[311784359,1705388157206,500.0,0.00022099,2]
[311784360,1705388158254,5842.06,0.00021439,2]
[311784361,1705388158939,1156.78,0.00022099,2]
[311784362,1705388159459,500.0,0.00022099,2]
[311784363,1705388160507,500.0,0.00022099,2]
[311784364,1705388160981,520.18,0.00022099,2]
[311784365,1705388167004,1428.76,0.00021461,2]
[311784366,1705388169233,1063.84,0.00022099,2]
[311784367,1705388170518,964.2,0.00021461,2]
[311784368,1705388171187,500.0,0.00022099,2]
[311784369,1705388173013,1096.4,0.00022099,2]
[311784370,1705388175091,815.75,0.00022099,2]
[311784371,1705388175204,554.74,0.00022099,2]
[311784372,1705388175531,900.74,0.00021461,2]
[311784373,1705388175563,4434.37,0.00022099,2]
[311784374,1705388177912,500.0,0.00022099,2]
[311784375,1705388178886,724.07,0.00022099,2]
[311784376,1705388180597,500.0,0.00022099,2]
[311784377,1705388183494,2185.82,0.00022099,2]
[311784378,1705388184390,800.83,0.00022099,2]
[311784379,1705388185906,988.03,0.00022099,2]
[311784380,1705388186015,500.0,0.00022099,2]
[311784381,1705388187762,462.35,0.00021476,2]
[311784382,1705388190704,500.0,0.00022099,2]
[311784383,1705388191503,177.39,0.00022099,2]
[311784384,1705388192166,150.0,0.00021459,2]
[311784385,1705388193282,924.24,0.00022099,2]
[311784386,1705388193591,183.03,0.00021462,2]
[311784387,1705388193994,4094.82,0.00022099,2]
[311784388,1705388195691,837.08,0.00022099,2]
[311784389,1705388196176,500.0,0.00022099,2]
[311784390,1705388196401,500.0,0.00022099,2]
[311784391,1705388197940,590.08,0.0002144,2]
[311784392,1705388201394,4342.77,0.0002144,2]
[311784393,1705388201790,500.0,0.00022099,2]
[311784394,1705388203193,500.0,0.00022099,2]
[311784395,1705388204142,2000.0,0.0002144,2]
[311784396,1705388205887,1461.32,0.00022099,2]
[311784397,1705388206056,500.0,0.00022099,2]
[311784398,1705388206087,2338.49,0.00022099,2]
[311784399,1705388208263,1598.66,0.00022099,2]
[311784400,1705388208501,500.0,0.00022099,2]
[311784401,1705388208543,500.0,0.00022099,2]
[311784402,1705388208718,23900.0,0.0002144,2]
[311784403,1705388209959,531.43,0.00022099,2]
[311784404,1705388210068,500.0,0.00022099,2]
[311784405,1705388211153,500.0,0.00022099,2]
[311784406,1705388212145,163.63,0.000216,2]
[311784407,1705388212302,501.14,0.00022099,2]
[311784408,1705388212367,163.63,0.00021761,2]
[311784409,1705388212573,163.63,0.00021922,2]
[311784410,1705388212739,500.0,0.00022099,2]
[311784411,1705388212973,163.63,0.00022083,2]
[311784412,1705388214990,500.0,0.00022099,2]
[311784413,1705388215571,500.0,0.00022099,2]
[311784414,1705388215757,500.0,0.00022099,2]
[311784415,1705388217490,1373.34,0.00022099,2]
[311784416,1705388219016,500.0,0.00022099,2]
[311784417,1705388219209,1054.06,0.00022099,2]
[311784418,1705388219789,500.0,0.00022099,2]
[311784419,1705388222341,1120.78,0.00022099,2]
[311784420,1705388222428,500.0,0.00022099,2]
[311784421,1705388222464,500.0,0.00022099,2]
[311784422,1705388223884,1684.07,0.00022099,2]
[311784423,1705388224589,1049.79,0.00022099,2]
[311784424,1705388224797,500.0,0.00022099,2]
[311784425,1705388225944,153.24,0.00021404,2]
[311784426,1705388226163,444.68745935,0.00022099,2]
[311784427,1705388226203,153.24,0.00021517,2]
[311784428,1705388226398,153.24,0.0002163,2]
[311784429,1705388226794,153.24,0.00021742,2]
[311784430,1705388227005,153.24,0.00021855,2]
[311784431,1705388227126,513.36,0.00022099,2]
[311784432,1705388227226,153.24,0.00021968,2]
[311784433,1705388227408,153.24,0.0002208,2]
[311784434,1705388231920,1090.25,0.00022099,2]
[311784435,1705388232631,500.0,0.00022099,2]
[311784436,1705388233948,500.0,0.00022099,2]
[311784437,1705388234624,14462.05,0.00021354,2]
[311784438,1705388238336,2207.77,0.00021354,2]
[311784439,1705388238579,1203.22,0.00022099,2]
[311784440,1705388238882,740.69,0.00022099,2]
[311784441,1705388240634,592.44,0.00022099,2]
[311784442,1705388241315,697.55,0.00022099,2]
[311784443,1705388241622,500.0,0.00022099,2]
[311784444,1705388242006,627.34,0.00022099,2]
[311784445,1705388243799,848.13,0.00022099,2]
[311784446,1705388243928,500.0,0.00022099,2]
[311784447,1705388244485,1214.75,0.00022099,2]
[311784448,1705388247421,557.19,0.00021354,2]
[311784449,1705388247580,676.35,0.00022099,2]
[311784450,1705388248494,705.82,0.00022099,2]
[311784451,1705388249587,738.46,0.00022099,2]
[311784452,1705388252129,615.89,0.00022099,2]
[311784453,1705388255146,2711.8,0.00022099,2]
[311784454,1705388256408,1900.23,0.00022099,2]
[311784455,1705388256504,500.0,0.00022099,2]
[311784456,1705388256595,500.0,0.00022099,2]
[311784457,1705388257360,500.0,0.00022099,2]
[311784458,1705388258384,250.0,0.00021918,2]
[311784459,1705388259560,500.0,0.00022099,2]
[311784460,1705388259850,500.0,0.00022099,2]
[311784461,1705388261334,200.0,0.00021336,2]
[311784462,1705388263015,500.0,0.00022099,2]
[311784463,1705388263420,802.22,0.00022099,2]
[311784464,1705388264729,729.25,0.00022099,2]
[311784465,1705388265158,2747.36,0.00022099,2]
[311784466,1705388266003,500.0,0.00022099,2]
[311784467,1705388266351,2680.2,0.00022099,2]
[311784468,1705388270335,500.0,0.00022099,2]
[311784469,1705388270589,151.99982549,0.00021373,2]
[311784470,1705388271262,500.0,0.00022099,2]
[311784471,1705388271773,500.0,0.00022099,2]
[311784472,1705388274237,1512.1,0.00022099,2]
[311784473,1705388274384,1891.83,0.00022099,2]
[311784474,1705388274473,500.0,0.00022099,2]
[311784475,1705388274951,1511.19,0.00022099,2]
[311784476,1705388275306,500.0,0.00022099,2]
[311784477,1705388276918,1718.16,0.00022099,2]
[311784478,1705388277410,500.0,0.00022099,2]
[311784479,1705388279950,1737.28,0.00022099,2]
[311784480,1705388279980,3679.27,0.00021336,2]
[311784481,1705388284765,500.0,0.00021336,2]
[311784482,1705388284797,928.41,0.00022099,2]
[311784483,1705388284864,875.05,0.00022099,2]
[311784484,1705388285110,500.0,0.00022099,2]
[311784485,1705388286558,500.0,0.00022099,2]
[311784486,1705388286587,500.0,0.00022099,2]
[311784487,1705388287284,2754.12,0.00022099,2]
[311784488,1705388287323,531.82515984,0.00022099,5]
[311784489,1705388289993,2585.87,0.00022099,2]
[311784490,1705388294187,500.0,0.00022099,2]
[311784491,1705388294918,1070.18,0.00022099,2]
[311784492,1705388295145,500.0,0.00022099,2]
[311784493,1705388295374,500.0,0.00022099,2]
[311784494,1705388296710,500.0,0.00022099,2]
[311784495,1705388297988,366.24,0.00021918,2]
[311784496,1705388298165,500.0,0.00022099,2]
[311784497,1705388298285,500.0,0.00022099,2]
[311784498,1705388298924,2551.66,0.00022099,2]
[311784499,1705388299105,500.0,0.00022099,2]
[311784500,1705388299791,500.0,0.00022099,2]
[311784501,1705388300460,500.0,0.00022099,2]
[311784502,1705388301847,1534.82,0.00022099,2]
[311784503,1705388301967,500.0,0.00022099,2]
[311784504,1705388303311,1253.96,0.00022099,2]
[311784505,1705388303834,159.77,0.00021326,2]
[311784506,1705388304665,500.0,0.00022099,2]
[311784507,1705388305239,500.0,0.00022099,2]
[311784508,1705388306691,500.0,0.00022099,2]
[311784509,1705388307866,500.0,0.00022099,2]
[311784510,1705388312595,568.35,0.00022099,2]
[311784511,1705388312799,500.0,0.00022099,2]
[311784512,1705388312875,652.2,0.00022099,2]
[311784513,1705388313711,750.0,0.00021356,2]
[311784514,1705388314833,261.69117228,0.00022099,2]
[311784515,1705388329784,150.0,0.0002155,2]
[311784516,1705388329805,12.89,0.0002155,2]
[311784517,1705388340261,137.11,0.00021326,2]
[311784518,1705388340282,225.37162926,0.00021326,2]
[311784519,1705388340311,2342.51837074,0.00021326,2]
[311784520,1705388341685,-194.26185883,0.00022099,2]
[311784521,1705388358654,588.53,0.00021302,2]
[311784522,1705388375036,269.7,0.00019396,2]
[311784523,1705388375760,269.7,0.00021659,2]
[311784524,1705388385548,1410.12,0.00021313,2]
[311784525,1705388410623,500.0,0.000205,2]
[311784529,1705388475097,157.39029623,0.00021999,2]
[311784530,1705388499513,487.23,0.00021293,2]
[311784531,1705388540036,200.0,0.00021262,2]
[311784532,1705388596365,250.0,0.00021246,2]
[311784533,1705388600606,176.23,0.000213,2]
[311784534,1705388602018,351.12,0.00021848,2]
[311784535,1705388607401,21035.0,0.00021923,2]
[311784536,1705388641112,23900.0,0.00021246,2]
[311784537,1705388653256,630.12,0.0002127,2]
[311784538,1705388673175,393.15,0.00021262,2]
[311784539,1705388686920,159.01,0.00021262,2]
[311784540,1705388687038,159.01,0.00021403,2]
[311784541,1705388687176,159.01,0.00021545,2]
[311784542,1705388687406,159.01,0.00021687,2]
[311784543,1705388687633,159.01,0.00021829,2]
[311784544,1705388687851,159.01,0.0002197,2]
[311784545,1705388688176,250.0,0.00021918,2]
[311784546,1705388698796,185.73,0.00021243,2]
[311784547,1705388722761,160.56,0.00021424,2]
[311784548,1705388722946,160.56,0.00021647,2]
[311784549,1705388723191,160.56,0.0002187,2]
[311784550,1705388733731,206.0,0.00021707,2]
[311784551,1705388736864,-160.56,0.00022093,2]
[311784552,1705388736887,-2268.05316506,0.00022098,2]
[311784553,1705388769274,1019.06,0.00021263,2]
[311784554,1705388797934,747.32683494,0.00022,2]
[311784555,1705388797959,599.18318511,0.00022,2]
[311784556,1705388847076,300.0,0.000216,7]
[311784557,1705388849187,700.0,0.000217,7]
[311784558,1705388851338,1000.0,0.000218,7]
[311784559,1705388853466,1400.0,0.000219,7]
[311784560,1705388913455,373.34943855,0.00022042,2]
[311784561,1705388919903,263.08,0.00019341,2]
[311784562,1705388920112,263.08,0.00021605,2]
[311784563,1705388941941,150.0,0.00022097,2]
[311784564,1705388983650,200.0,0.00021235,2]
[311784565,1705389000367,561.0,0.00021917,7]
[311784566,1705389009508,357.0,0.00021917,7]
[311784567,1705389015806,429.0,0.00021917,7]
[311784568,1705389023659,465.55,0.00021231,2]
[311784579,1705389032172,-679.42,0.00022098,2]
[311784581,1705389032181,-2715.87,0.00022098,2]
[311784583,1705389032190,-1314.11,0.00022098,2]
[311784585,1705389032200,-500.0,0.00022098,2]
[311784587,1705389032209,-500.0,0.00022098,2]
[311784589,1705389032219,-500.0,0.00022098,2]
[311784590,1705389032228,-567.6,0.00022098,2]
[311784591,1705389032238,-1099.22,0.00022098,2]
[311784592,1705389032248,-762.73,0.00022098,2]
[311784593,1705389032257,-500.0,0.00022098,2]
[311784594,1705389032266,-796.08,0.00022098,2]
[311784595,1705389032275,-9851.46,0.00022098,2]
[311784596,1705389032284,-852.7,0.00022098,2]
[311784597,1705389032293,-742.45,0.00022098,2]
[311784598,1705389032302,-2060.06,0.00022098,2]
[311784599,1705389032311,-810.78,0.00022098,2]
[311784600,1705389032320,-543.06,0.00022098,2]
[311784601,1705389032329,-859.73,0.00022098,2]
[311784602,1705389032338,-500.0,0.00022098,2]
[311784603,1705389032347,-901.73,0.00022098,2]
[311784604,1705389032356,-1164.62,0.00022098,2]
[311784605,1705389032365,-534.41,0.00022098,2]
[311784606,1705389032374,-715.54,0.00022098,2]
[311784607,1705389032383,-1053.36,0.00022098,2]
[311784608,1705389032392,-507.29,0.00022098,2]
[311784609,1705389032401,-585.85,0.00022098,2]
[311784610,1705389032411,-500.0,0.00022099,2]
[311784611,1705389032419,-500.0,0.00022099,2]
[311784612,1705389032429,-500.0,0.00022099,2]
[311784613,1705389032438,-500.0,0.00022099,2]
[311784614,1705389032447,-500.0,0.00022099,2]
[311784615,1705389032456,-500.0,0.00022099,2]
[311784616,1705389032465,-500.0,0.00022099,2]
[311784617,1705389032475,-500.0,0.00022099,2]
[311784618,1705389032485,-500.0,0.00022099,2]
[311784619,1705389032494,-500.0,0.00022099,2]
[311784620,1705389032503,-500.0,0.00022099,2]
[311784621,1705389032512,-250.0,0.00022099,2]
[311784623,1705389032521,-500.0,0.00022099,2]
[311784625,1705389032530,-500.0,0.00022099,2]
[311784626,1705389032677,-500.0,0.00022099,2]
[311784627,1705389032704,-642.24,0.00022099,2]
[311784628,1705389032714,-500.0,0.00022099,2]
[311784629,1705389032723,-500.0,0.00022099,2]
[311784630,1705389032734,-500.0,0.00022099,2]
[311784631,1705389032743,-500.0,0.00022099,2]
[311784632,1705389032752,-500.0,0.00022099,2]
[311784633,1705389032761,-500.0,0.00022099,2]
[311784634,1705389032771,-500.0,0.00022099,2]
[311784635,1705389032780,-500.0,0.00022099,2]
[311784636,1705389032789,-500.0,0.00022099,2]
[311784637,1705389032799,-742.61,0.00022099,2]
[311784638,1705389032808,-500.0,0.00022099,2]
[311784639,1705389032827,-500.0,0.00022099,2]
[311784640,1705389032838,-712.62,0.00022099,2]
[311784641,1705389032848,-500.0,0.00022099,2]
[311784642,1705389032858,-500.0,0.00022099,2]
[311784643,1705389032868,-500.0,0.00022099,2]
[311784644,1705389032878,-629.73,0.00022099,2]
[311784645,1705389032888,-563.55,0.00022099,2]
[311784646,1705389032898,-500.0,0.00022099,2]
[311784647,1705389032907,-500.0,0.00022099,2]
[311784648,1705389032917,-500.0,0.00022099,2]
[311784649,1705389032927,-500.0,0.00022099,2]
[311784650,1705389032937,-500.0,0.00022099,2]
[311784651,1705389032947,-500.0,0.00022099,2]
[311784652,1705389032957,-500.0,0.00022099,2]
[311784653,1705389032967,-500.0,0.00022099,2]
[311784654,1705389032977,-500.0,0.00022099,2]
[311784655,1705389032987,-500.0,0.00022099,2]
[311784656,1705389032997,-500.0,0.00022099,2]
[311784657,1705389033006,-500.0,0.00022099,2]
[311784658,1705389033016,-500.0,0.00022099,2]
[311784659,1705389033026,-820.93,0.00022099,2]
[311784660,1705389033036,-559.98,0.00022099,2]
[311784661,1705389033045,-500.0,0.00022099,2]
[311784662,1705389033056,-500.0,0.00022099,2]
[311784663,1705389033066,-500.0,0.00022099,2]
[311784664,1705389033075,-500.0,0.00022099,2]
[311784665,1705389033085,-812.34,0.00022099,2]
[311784666,1705389033095,-500.0,0.00022099,2]
[311784667,1705389033104,-652.56,0.00022099,2]
[311784668,1705389033114,-577.87,0.00022099,2]
[311784669,1705389033124,-500.0,0.00022099,2]
[311784670,1705389033134,-500.0,0.00022099,2]
[311784671,1705389033144,-500.0,0.00022099,2]
[311784672,1705389033154,-673.79,0.00022099,2]
[311784673,1705389033164,-500.0,0.00022099,2]